{"text_format":"1","workbook":"xlsx","n_sheets":1,"sheets":["SNAP-Ed Invoice"],"not_rendered":{"charts":0,"images":0,"macros":1,"external_links":0,"defined_names":10,"comments":0,"pivot_tables":0},"unopened":[],"bounds":{"document_bytes":16777216,"sheet_cells":100000,"rows_first":2000,"rows_last":500,"rows_between":2000,"halvings":0,"cell_chars":16384,"cell_head_chars":4096},"cells_cut":0,"cells_raw":0,"read":"whole","date_system":"1900"}

{"sheet":"SNAP-Ed Invoice","index":0,"n_rows":304,"n_cols":18,"rows_kept":304,"cut":false,"hidden":false,"merged":[[7,0,7,1],[245,2,245,6],[227,2,227,6],[219,2,219,7],[56,2,56,4],[56,5,56,8],[210,2,210,7],[211,2,211,7],[212,2,212,7],[213,2,213,7],[214,2,214,7],[215,2,215,7],[216,2,216,7],[58,5,58,8],[59,2,59,4],[59,5,59,8],[60,2,60,4],[217,2,217,7],[218,2,218,7],[207,2,207,7],[208,2,208,7],[209,2,209,7],[241,2,241,6],[242,2,242,6],[243,2,243,6],[244,2,244,6],[198,2,198,7],[199,2,199,7],[200,2,200,7],[183,2,183,7],[184,2,184,7],[185,2,185,7],[186,2,186,7],[187,2,187,7],[188,2,188,7],[281,2,281,7],[282,2,282,7],[262,2,262,8],[263,2,263,8],[264,2,264,8],[265,2,265,8],[266,2,266,8],[267,2,267,8],[268,2,268,8],[253,2,253,6],[236,2,236,6],[237,2,237,6],[238,2,238,6],[239,2,239,6],[240,2,240,6],[249,2,249,6],[250,2,250,6],[251,2,251,6],[252,2,252,6],[246,2,246,6],[247,2,247,6],[248,2,248,6],[60,5,60,8],[61,2,61,4],[61,5,61,8],[62,2,62,4],[62,5,62,8],[201,2,201,7],[202,2,202,7],[203,2,203,7],[204,2,204,7],[162,2,162,7],[163,2,163,7],[164,2,164,7],[165,2,165,7],[166,2,166,7],[167,2,167,7],[168,2,168,7],[169,2,169,7],[153,2,153,7],[154,2,154,7],[155,2,155,7],[156,2,156,7],[157,2,157,7],[158,2,158,7],[159,2,159,7],[205,2,205,7],[206,2,206,7],[190,2,190,7],[191,2,191,7],[170,2,170,7],[171,2,171,7],[172,2,172,7],[173,2,173,7],[174,2,174,7],[175,2,175,7],[176,2,176,7],[177,2,177,7],[178,2,178,7],[189,2,189,7],[192,2,192,7],[193,2,193,7],[194,2,194,7],[195,2,195,7],[196,2,196,7],[179,2,179,7],[180,2,180,7],[181,2,181,7],[182,2,182,7],[197,2,197,7],[160,2,160,7],[161,2,161,7],[144,2,144,7],[145,2,145,7],[146,2,146,7],[147,2,147,7],[148,2,148,7],[149,2,149,7],[150,2,150,7],[151,2,151,7],[152,2,152,7],[135,2,135,7],[136,2,136,7],[137,2,137,7],[138,2,138,7],[139,2,139,7],[140,2,140,7],[141,2,141,7],[142,2,142,7],[143,2,143,7],[126,2,126,7],[127,2,127,7],[128,2,128,7],[129,2,129,7],[130,2,130,7],[131,2,131,7],[132,2,132,7],[133,2,133,7],[134,2,134,7],[117,2,117,7],[118,2,118,7],[119,2,119,7],[120,2,120,7],[121,2,121,7],[122,2,122,7],[123,2,123,7],[124,2,124,7],[125,2,125,7],[29,2,29,3],[30,2,30,3],[31,2,31,3],[32,2,32,3],[90,2,90,7],[91,2,91,7],[92,2,92,7],[0,13,1,13],[18,2,18,3],[19,2,19,3],[20,2,20,3],[7,2,7,3],[0,0,0,2],[5,0,5,3],[3,4,3,5],[0,3,0,7],[1,0,1,8],[3,8,5,9],[13,2,13,3],[12,2,12,3],[15,2,15,3],[11,2,11,3],[8,2,8,3],[53,2,53,4],[16,2,16,3],[302,0,303,6],[299,0,299,9],[287,0,287,9],[46,9,47,9],[290,0,290,1],[293,0,293,9],[296,0,296,1],[294,8,294,9],[290,2,290,9],[291,2,291,6],[45,0,45,9],[223,0,223,1],[65,0,65,9],[300,0,301,6],[50,5,50,8],[78,2,78,7],[79,2,79,7],[69,2,69,7],[70,2,70,7],[71,2,71,7],[72,2,72,7],[73,2,73,7],[28,2,28,3],[9,2,9,3],[289,0,289,9],[273,2,273,7],[274,2,274,7],[292,2,292,3],[292,4,292,8],[17,2,17,3],[270,2,270,7],[271,2,271,7],[272,2,272,7],[51,2,51,4],[21,2,21,3],[22,2,22,3],[23,2,23,3],[24,2,24,3],[25,2,25,3],[26,2,26,3],[27,2,27,3],[69,0,69,1],[48,5,48,8],[49,2,49,4],[49,5,49,8],[50,2,50,4],[87,2,87,7],[88,2,88,7],[89,2,89,7],[220,0,221,8],[80,2,80,7],[81,2,81,7],[82,2,82,7],[93,2,93,7],[94,2,94,7],[95,2,95,7],[102,2,102,7],[103,2,103,7],[104,2,104,7],[105,2,105,7],[106,2,106,7],[107,2,107,7],[108,2,108,7],[109,2,109,7],[110,2,110,7],[111,2,111,7],[112,2,112,7],[113,2,113,7],[114,2,114,7],[115,2,115,7],[116,2,116,7],[2,0,2,9],[269,0,269,1],[257,0,257,1],[46,0,47,1],[6,0,6,9],[258,2,258,8],[259,2,259,8],[260,2,260,8],[257,2,257,8],[10,2,10,3],[3,6,4,7],[5,6,5,7],[47,5,47,8],[47,2,47,4],[3,0,4,3],[14,2,14,3],[74,2,74,7],[75,2,75,7],[76,2,76,7],[77,2,77,7],[43,0,44,8],[46,2,46,8],[222,0,222,9],[256,0,256,9],[296,3,296,9],[297,3,297,9],[298,2,298,9],[288,5,288,7],[288,0,288,4],[294,4,294,7],[234,2,234,6],[235,2,235,6],[254,0,255,8],[285,0,286,8],[297,0,298,1],[291,0,292,1],[295,0,295,9],[261,2,261,8],[269,2,269,7],[283,2,283,7],[284,2,284,7],[288,8,288,9],[275,2,275,7],[276,2,276,7],[277,2,277,7],[278,2,278,7],[279,2,279,7],[280,2,280,7],[258,0,258,1],[48,2,48,4],[83,2,83,7],[84,2,84,7],[85,2,85,7],[294,0,294,3],[257,9,258,9],[223,2,223,6],[233,2,233,6],[228,2,228,6],[229,2,229,6],[230,2,230,6],[231,2,231,6],[232,2,232,6],[224,2,224,6],[225,2,225,6],[226,2,226,6],[96,2,96,7],[97,2,97,7],[98,2,98,7],[99,2,99,7],[100,2,100,7],[101,2,101,7],[86,2,86,7],[42,2,42,3],[66,0,67,8],[68,0,68,9],[33,2,33,3],[34,2,34,3],[35,2,35,3],[36,2,36,3],[37,2,37,3],[38,2,38,3],[39,2,39,3],[40,2,40,3],[41,2,41,3],[51,5,51,8],[52,2,52,4],[52,5,52,8],[63,0,64,8],[57,2,57,4],[57,5,57,8],[58,2,58,4],[53,5,53,8],[54,2,54,4],[54,5,54,8],[55,2,55,4],[55,5,55,8]]}
["CFDA # 10.561",null,null,null,null,null,null,null,null,"SNAP-ED FY2019",null,null,null,"Include"]
[null,null,null,null,null,null,null,null,null,"Rev. 9/2018"]
[null,null,null,null,null,null,null,null,null,null,null,null,null,"y"]
["SUBRECIPIENT NAME",null,null,null,"Billing Period",null,"Subrecipient Invoice / Ref #",null,"SNAP-ED INVOICE",null,null,null,null,"y"]
[null,null,null,null,"Start","End",null,null,null,null,null,null,null,"y"]
[null,null,null,null,null,null,null,null,null,null,null,null,null,"y",null,"Max","Max","Max"]
[null,null,null,null,null,null,null,null,null,null,null,null,null,"y",null,{"$f":"MAX(P8:P46)","v":0},{"$f":"MAX(Q8:Q46)","v":0},0]
[{"$f":"IF(N47=\"y\",\"A1\",\"A\")","v":"A"},null,"SNAP-ED Effort for Employees\nList employee name and title",null,"Hourly Rate","# of SNAP-Ed Hours This Period","Salary This Period","Fringe Rate(%)","Fringe This Period","Total",null,null,null,"y",null,"# decimal hourly rate","# decimal hours","# decimal fringe rate"]
[1,null,null,null,null,null,{"$f":"ROUND(E9*F9,2)","v":0},null,{"$f":"ROUND(G9*H9,2)","v":0},{"$f":"G9+I9","v":0},"Employees",null,null,"y",null,{"$f":"IFERROR(LEN(RIGHT(E9,LEN(E9)-FIND(\".\",E9))),0)","v":0},{"$f":"IFERROR(LEN(RIGHT(F9,LEN(F9)-FIND(\".\",F9))),0)","v":0},{"$f":"IFERROR(LEN(RIGHT(H9,LEN(H9)-FIND(\".\",H9))),0)","v":0}]
[{"$f":"A9+1","v":2},null,null,null,null,null,0,null,0,0,"Employees",null,null,"y",null,{"$f":"IFERROR(LEN(RIGHT(E10,LEN(E10)-FIND(\".\",E10))),0)","v":0},{"$f":"IFERROR(LEN(RIGHT(F10,LEN(F10)-FIND(\".\",F10))),0)","v":0},{"$f":"IFERROR(LEN(RIGHT(H10,LEN(H10)-FIND(\".\",H10))),0)","v":0}]
[3,null,null,null,null,null,0,null,0,0,"Employees",null,null,{"$f":"IF(C10<>\"\",\"y\",IF(C11<>\"\",\"y\",IF(J11<>0,\"y\",\"n\")))","v":"n"},null,0,0,0]
[4,null,null,null,null,null,0,null,0,0,"Employees",null,null,{"$f":"IF(C11<>\"\",\"y\",IF(C12<>\"\",\"y\",IF(J12<>0,\"y\",\"n\")))","v":"n"},null,0,0,0]
[5,null,null,null,null,null,0,null,0,0,"Employees",null,null,"n",null,0,0,0]
[6,null,null,null,null,null,0,null,0,0,"Employees",null,null,"n",null,0,0,0]
[7,null,null,null,null,null,0,null,0,0,"Employees",null,null,"n",null,0,0,0]
[8,null,null,null,null,null,0,null,0,0,"Employees",null,null,"n",null,0,0,0]
[9,null,null,null,null,null,0,null,0,0,"Employees",null,null,"n",null,0,0,0]
[{"$f":"A17+1","v":10},null,null,null,null,null,0,null,0,0,"Employees",null,null,"n",null,0,0,0]
[11,null,null,null,null,null,{"$f":"ROUND(E19*F19,2)","v":0},null,{"$f":"ROUND(G19*H19,2)","v":0},{"$f":"G19+I19","v":0},"Employees",null,null,"n",null,0,0,0]
[12,null,null,null,null,null,0,null,0,0,"Employees",null,null,"n",null,0,0,0]
[13,null,null,null,null,null,0,null,0,0,"Employees",null,null,"n",null,0,0,0]
[14,null,null,null,null,null,0,null,0,0,"Employees",null,null,"n",null,0,0,0]
[15,null,null,null,null,null,0,null,0,0,"Employees",null,null,"n",null,0,0,0]
[16,null,null,null,null,null,0,null,0,0,"Employees",null,null,"n",null,0,0,0]
[17,null,null,null,null,null,0,null,0,0,"Employees",null,null,"n",null,0,0,0]
[18,null,null,null,null,null,0,null,0,0,"Employees",null,null,"n",null,0,0,0]
[19,null,null,null,null,null,0,null,0,0,"Employees",null,null,"n",null,0,0,0]
[20,null,null,null,null,null,0,null,0,0,"Employees",null,null,"n",null,0,0,0]
[{"$f":"A28+1","v":21},null,null,null,null,null,0,null,0,0,"Employees",null,null,"n",null,0,0,0]
[22,null,null,null,null,null,{"$f":"ROUND(E30*F30,2)","v":0},null,{"$f":"ROUND(G30*H30,2)","v":0},{"$f":"G30+I30","v":0},"Employees",null,null,"n",null,0,0,0]
[23,null,null,null,null,null,0,null,0,0,"Employees",null,null,"n",null,0,0,0]
[24,null,null,null,null,null,0,null,0,0,"Employees",null,null,"n",null,0,0,0]
[25,null,null,null,null,null,0,null,0,0,"Employees",null,null,"n",null,0,0,0]
[{"$f":"A33+1","v":26},null,null,null,null,null,0,null,0,0,"Employees",null,null,"n",null,{"$f":"IFERROR(LEN(RIGHT(E34,LEN(E34)-FIND(\".\",E34))),0)","v":0},{"$f":"IFERROR(LEN(RIGHT(F34,LEN(F34)-FIND(\".\",F34))),0)","v":0},{"$f":"IFERROR(LEN(RIGHT(H34,LEN(H34)-FIND(\".\",H34))),0)","v":0}]
[27,null,null,null,null,null,{"$f":"ROUND(E35*F35,2)","v":0},null,{"$f":"ROUND(G35*H35,2)","v":0},{"$f":"G35+I35","v":0},"Employees",null,null,"n",null,0,0,0]
[28,null,null,null,null,null,0,null,0,0,"Employees",null,null,"n",null,0,0,0]
[29,null,null,null,null,null,0,null,0,0,"Employees",null,null,"n",null,0,0,0]
[30,null,null,null,null,null,0,null,0,0,"Employees",null,null,"n",null,0,0,0]
[{"$f":"A38+1","v":31},null,null,null,null,null,0,null,0,0,"Employees",null,null,"n",null,{"$f":"IFERROR(LEN(RIGHT(E39,LEN(E39)-FIND(\".\",E39))),0)","v":0},{"$f":"IFERROR(LEN(RIGHT(F39,LEN(F39)-FIND(\".\",F39))),0)","v":0},{"$f":"IFERROR(LEN(RIGHT(H39,LEN(H39)-FIND(\".\",H39))),0)","v":0}]
[32,null,null,null,null,null,{"$f":"ROUND(E40*F40,2)","v":0},null,{"$f":"ROUND(G40*H40,2)","v":0},{"$f":"G40+I40","v":0},"Employees",null,null,"n",null,0,0,0]
[33,null,null,null,null,null,0,null,0,0,"Employees",null,null,"n",null,0,0,0]
[34,null,null,null,null,null,0,null,0,0,"Employees",null,null,"n",null,0,0,0]
[35,null,null,null,null,null,0,null,0,0,"Employees",null,null,"n",null,0,0,0]
["EMPLOYEE SALARY AND FRINGE",null,null,null,null,null,null,null,null,null,null,null,null,"y",null,0,0,0]
[null,null,null,null,null,null,null,null,null,{"$f":"SUM(J8:J44)","v":0},null,null,null,"y"]
[null,null,null,null,null,null,null,null,null,null,null,null,null,"y"]
["A2",null,"Contracted Staff",null,null,null,null,null,null,"Total",null,null,null,{"$f":"IF(N49=\"y\",\"y\",IF(N50=\"y\",\"y\",IF(N51=\"y\",\"y\",IF(N65=\"y\",\"y\",\"n\"))))","v":"n"}]
[null,null,"Contractor Name",null,null,"Type of Service and Service Period",null,null,null,null,null,null,null,{"$f":"N47","v":"n"}]
[1,null,null,null,null,null,null,null,null,null,"Contracted Staff",null,null,{"$f":"IF(C49<>\"\",\"y\",IF(J49<>0,\"y\",\"n\"))","v":"n"}]
[{"$f":"A49+1","v":2},null,null,null,null,null,null,null,null,null,"Contracted Staff",null,null,{"$f":"IF(C49<>\"\",\"y\",IF(C50<>\"\",\"y\",IF(J50<>0,\"y\",\"n\")))","v":"n"}]
[3,null,null,null,null,null,null,null,null,null,"Contracted Staff",null,null,"n"]
[4,null,null,null,null,null,null,null,null,null,"Contracted Staff",null,null,"n"]
[5,null,null,null,null,null,null,null,null,null,"Contracted Staff",null,null,"n"]
[6,null,null,null,null,null,null,null,null,null,"Contracted Staff",null,null,"n"]
[7,null,null,null,null,null,null,null,null,null,"Contracted Staff",null,null,"n"]
[8,null,null,null,null,null,null,null,null,null,"Contracted Staff",null,null,"n"]
[9,null,null,null,null,null,null,null,null,null,"Contracted Staff",null,null,"n"]
[10,null,null,null,null,null,null,null,null,null,"Contracted Staff",null,null,"n"]
[11,null,null,null,null,null,null,null,null,null,"Contracted Staff",null,null,"n"]
[12,null,null,null,null,null,null,null,null,null,"Contracted Staff",null,null,"n"]
[13,null,null,null,null,null,null,null,null,null,"Contracted Staff",null,null,"n"]
[14,null,null,null,null,null,null,null,null,null,"Contracted Staff",null,null,"n"]
[15,null,null,null,null,null,null,null,null,null,"Contracted Staff",null,null,"n"]
["CONTRACTED STAFF",null,null,null,null,null,null,null,null,null,null,null,null,{"$f":"N$65","v":"n"}]
[null,null,null,null,null,null,null,null,null,{"$f":"SUM(J47:J64)","v":0},null,null,null,{"$f":"IF(J65<>0,\"y\",\"n\")","v":"n"}]
[null,null,null,null,null,null,null,null,null,null,null,null,null,{"$f":"N$65","v":"n"}]
["STAFFING - EMPLOYEES AND CONTRACTED",null,null,null,null,null,null,null,null,null,null,null,null,{"$f":"N$65","v":"n"}]
[null,null,null,null,null,null,null,null,null,{"$f":"J45+J65","v":0},null,null,null,{"$f":"N$65","v":"n"}]
[null,null,null,null,null,null,null,null,null,null,null,null,null,{"$f":"N$65","v":"n"}]
["B",null,"Program Expenses                                                **Including evaluation and other contractors**\nList name of vendor with a brief description of items",null,null,null,null,null,"Receipt Date","Total",null,null,null,"y"]
[1,null,null,null,null,null,null,null,null,null,"Supplies",null,null,"y"]
[{"$f":"A71+1","v":2},null,null,null,null,null,null,null,null,null,"Supplies",null,null,"y"]
[3,null,null,null,null,null,null,null,null,null,"Supplies",null,null,{"$f":"IF(C72<>\"\",\"y\",IF(C73<>\"\",\"y\",IF(J73<>0,\"y\",\"n\")))","v":"n"}]
[4,null,null,null,null,null,null,null,null,null,"Supplies",null,null,"n"]
[5,null,null,null,null,null,null,null,null,null,"Supplies",null,null,"n"]
[6,null,null,null,null,null,null,null,null,null,"Supplies",null,null,"n"]
[7,null,null,null,null,null,null,null,null,null,"Supplies",null,null,"n"]
[8,null,null,null,null,null,null,null,null,null,"Supplies",null,null,"n"]
[9,null,null,null,null,null,null,null,null,null,"Supplies",null,null,"n"]
[10,null,null,null,null,null,null,null,null,null,"Supplies",null,null,"n"]
[11,null,null,null,null,null,null,null,null,null,"Supplies",null,null,"n"]
[12,null,null,null,null,null,null,null,null,null,"Supplies",null,null,"n"]
[13,null,null,null,null,null,null,null,null,null,"Supplies",null,null,"n"]
[14,null,null,null,null,null,null,null,null,null,"Supplies",null,null,"n"]
[15,null,null,null,null,null,null,null,null,null,"Supplies",null,null,"n"]
[16,null,null,null,null,null,null,null,null,null,"Supplies",null,null,"n"]
[17,null,null,null,null,null,null,null,null,null,"Supplies",null,null,"n"]
[18,null,null,null,null,null,null,null,null,null,"Supplies",null,null,"n"]
[19,null,null,null,null,null,null,null,null,null,"Supplies",null,null,"n"]
[20,null,null,null,null,null,null,null,null,null,"Supplies",null,null,"n"]
[21,null,null,null,null,null,null,null,null,null,"Supplies",null,null,"n"]
[22,null,null,null,null,null,null,null,null,null,"Supplies",null,null,"n"]
[23,null,null,null,null,null,null,null,null,null,"Supplies",null,null,"n"]
[24,null,null,null,null,null,null,null,null,null,"Supplies",null,null,"n"]
[25,null,null,null,null,null,null,null,null,null,"Supplies",null,null,"n"]
[26,null,null,null,null,null,null,null,null,null,"Supplies",null,null,"n"]
[27,null,null,null,null,null,null,null,null,null,"Supplies",null,null,"n"]
[28,null,null,null,null,null,null,null,null,null,"Supplies",null,null,"n"]
[29,null,null,null,null,null,null,null,null,null,"Supplies",null,null,"n"]
[30,null,null,null,null,null,null,null,null,null,"Supplies",null,null,"n"]
[31,null,null,null,null,null,null,null,null,null,"Supplies",null,null,"n"]
[32,null,null,null,null,null,null,null,null,null,"Supplies",null,null,"n"]
[33,null,null,null,null,null,null,null,null,null,"Supplies",null,null,"n"]
[34,null,null,null,null,null,null,null,null,null,"Supplies",null,null,"n"]
[35,null,null,null,null,null,null,null,null,null,"Supplies",null,null,"n"]
[36,null,null,null,null,null,null,null,null,null,"Supplies",null,null,"n"]
[37,null,null,null,null,null,null,null,null,null,"Supplies",null,null,"n"]
[38,null,null,null,null,null,null,null,null,null,"Supplies",null,null,"n"]
[39,null,null,null,null,null,null,null,null,null,"Supplies",null,null,"n"]
[40,null,null,null,null,null,null,null,null,null,"Supplies",null,null,"n"]
[41,null,null,null,null,null,null,null,null,null,"Supplies",null,null,"n"]
[42,null,null,null,null,null,null,null,null,null,"Supplies",null,null,"n"]
[43,null,null,null,null,null,null,null,null,null,"Supplies",null,null,"n"]
[44,null,null,null,null,null,null,null,null,null,"Supplies",null,null,"n"]
[45,null,null,null,null,null,null,null,null,null,"Supplies",null,null,"n"]
[46,null,null,null,null,null,null,null,null,null,"Supplies",null,null,"n"]
[47,null,null,null,null,null,null,null,null,null,"Supplies",null,null,"n"]
[48,null,null,null,null,null,null,null,null,null,"Supplies",null,null,"n"]
[49,null,null,null,null,null,null,null,null,null,"Supplies",null,null,"n"]
[50,null,null,null,null,null,null,null,null,null,"Supplies",null,null,"n"]
[51,null,null,null,null,null,null,null,null,null,"Supplies",null,null,"n"]
[52,null,null,null,null,null,null,null,null,null,"Supplies",null,null,"n"]
[53,null,null,null,null,null,null,null,null,null,"Supplies",null,null,"n"]
[54,null,null,null,null,null,null,null,null,null,"Supplies",null,null,"n"]
[55,null,null,null,null,null,null,null,null,null,"Supplies",null,null,"n"]
[56,null,null,null,null,null,null,null,null,null,"Supplies",null,null,"n"]
[57,null,null,null,null,null,null,null,null,null,"Supplies",null,null,"n"]
[58,null,null,null,null,null,null,null,null,null,"Supplies",null,null,"n"]
[59,null,null,null,null,null,null,null,null,null,"Supplies",null,null,"n"]
[60,null,null,null,null,null,null,null,null,null,"Supplies",null,null,"n"]
[61,null,null,null,null,null,null,null,null,null,"Supplies",null,null,"n"]
[62,null,null,null,null,null,null,null,null,null,"Supplies",null,null,"n"]
[63,null,null,null,null,null,null,null,null,null,"Supplies",null,null,"n"]
[64,null,null,null,null,null,null,null,null,null,"Supplies",null,null,"n"]
[65,null,null,null,null,null,null,null,null,null,"Supplies",null,null,"n"]
[{"$f":"A135+1","v":66},null,null,null,null,null,null,null,null,null,"Supplies",null,null,"n"]
[67,null,null,null,null,null,null,null,null,null,"Supplies",null,null,{"$f":"IF(C136<>\"\",\"y\",IF(C137<>\"\",\"y\",IF(J137<>0,\"y\",\"n\")))","v":"n"}]
[68,null,null,null,null,null,null,null,null,null,"Supplies",null,null,"n"]
[69,null,null,null,null,null,null,null,null,null,"Supplies",null,null,"n"]
[70,null,null,null,null,null,null,null,null,null,"Supplies",null,null,"n"]
[71,null,null,null,null,null,null,null,null,null,"Supplies",null,null,"n"]
[72,null,null,null,null,null,null,null,null,null,"Supplies",null,null,"n"]
[73,null,null,null,null,null,null,null,null,null,"Supplies",null,null,"n"]
[74,null,null,null,null,null,null,null,null,null,"Supplies",null,null,"n"]
[75,null,null,null,null,null,null,null,null,null,"Supplies",null,null,"n"]
[76,null,null,null,null,null,null,null,null,null,"Supplies",null,null,"n"]
[77,null,null,null,null,null,null,null,null,null,"Supplies",null,null,"n"]
[78,null,null,null,null,null,null,null,null,null,"Supplies",null,null,"n"]
[79,null,null,null,null,null,null,null,null,null,"Supplies",null,null,"n"]
[80,null,null,null,null,null,null,null,null,null,"Supplies",null,null,"n"]
[81,null,null,null,null,null,null,null,null,null,"Supplies",null,null,"n"]
[82,null,null,null,null,null,null,null,null,null,"Supplies",null,null,"n"]
[83,null,null,null,null,null,null,null,null,null,"Supplies",null,null,"n"]
[84,null,null,null,null,null,null,null,null,null,"Supplies",null,null,"n"]
[85,null,null,null,null,null,null,null,null,null,"Supplies",null,null,"n"]
[86,null,null,null,null,null,null,null,null,null,"Supplies",null,null,"n"]
[87,null,null,null,null,null,null,null,null,null,"Supplies",null,null,"n"]
[88,null,null,null,null,null,null,null,null,null,"Supplies",null,null,"n"]
[89,null,null,null,null,null,null,null,null,null,"Supplies",null,null,"n"]
[90,null,null,null,null,null,null,null,null,null,"Supplies",null,null,"n"]
[91,null,null,null,null,null,null,null,null,null,"Supplies",null,null,"n"]
[92,null,null,null,null,null,null,null,null,null,"Supplies",null,null,"n"]
[93,null,null,null,null,null,null,null,null,null,"Supplies",null,null,"n"]
[94,null,null,null,null,null,null,null,null,null,"Supplies",null,null,"n"]
[95,null,null,null,null,null,null,null,null,null,"Supplies",null,null,"n"]
[96,null,null,null,null,null,null,null,null,null,"Supplies",null,null,"n"]
[97,null,null,null,null,null,null,null,null,null,"Supplies",null,null,"n"]
[98,null,null,null,null,null,null,null,null,null,"Supplies",null,null,"n"]
[99,null,null,null,null,null,null,null,null,null,"Supplies",null,null,"n"]
[100,null,null,null,null,null,null,null,null,null,"Supplies",null,null,"n"]
[101,null,null,null,null,null,null,null,null,null,"Supplies",null,null,"n"]
[102,null,null,null,null,null,null,null,null,null,"Supplies",null,null,"n"]
[103,null,null,null,null,null,null,null,null,null,"Supplies",null,null,"n"]
[104,null,null,null,null,null,null,null,null,null,"Supplies",null,null,"n"]
[105,null,null,null,null,null,null,null,null,null,"Supplies",null,null,"n"]
[106,null,null,null,null,null,null,null,null,null,"Supplies",null,null,"n"]
[107,null,null,null,null,null,null,null,null,null,"Supplies",null,null,"n"]
[108,null,null,null,null,null,null,null,null,null,"Supplies",null,null,"n"]
[109,null,null,null,null,null,null,null,null,null,"Supplies",null,null,"n"]
[110,null,null,null,null,null,null,null,null,null,"Supplies",null,null,"n"]
[111,null,null,null,null,null,null,null,null,null,"Supplies",null,null,"n"]
[112,null,null,null,null,null,null,null,null,null,"Supplies",null,null,"n"]
[113,null,null,null,null,null,null,null,null,null,"Supplies",null,null,"n"]
[114,null,null,null,null,null,null,null,null,null,"Supplies",null,null,"n"]
[115,null,null,null,null,null,null,null,null,null,"Supplies",null,null,"n"]
[116,null,null,null,null,null,null,null,null,null,"Supplies",null,null,"n"]
[117,null,null,null,null,null,null,null,null,null,"Supplies",null,null,"n"]
[118,null,null,null,null,null,null,null,null,null,"Supplies",null,null,"n"]
[119,null,null,null,null,null,null,null,null,null,"Supplies",null,null,"n"]
[120,null,null,null,null,null,null,null,null,null,"Supplies",null,null,"n"]
[121,null,null,null,null,null,null,null,null,null,"Supplies",null,null,"n"]
[122,null,null,null,null,null,null,null,null,null,"Supplies",null,null,"n"]
[123,null,null,null,null,null,null,null,null,null,"Supplies",null,null,"n"]
[124,null,null,null,null,null,null,null,null,null,"Supplies",null,null,"n"]
[125,null,null,null,null,null,null,null,null,null,"Supplies",null,null,"n"]
[126,null,null,null,null,null,null,null,null,null,"Supplies",null,null,"n"]
[127,null,null,null,null,null,null,null,null,null,"Supplies",null,null,"n"]
[128,null,null,null,null,null,null,null,null,null,"Supplies",null,null,"n"]
[129,null,null,null,null,null,null,null,null,null,"Supplies",null,null,"n"]
[{"$f":"A199+1","v":130},null,null,null,null,null,null,null,null,null,"Supplies",null,null,"n"]
[131,null,null,null,null,null,null,null,null,null,"Supplies",null,null,{"$f":"IF(C200<>\"\",\"y\",IF(C201<>\"\",\"y\",IF(J201<>0,\"y\",\"n\")))","v":"n"}]
[132,null,null,null,null,null,null,null,null,null,"Supplies",null,null,"n"]
[133,null,null,null,null,null,null,null,null,null,"Supplies",null,null,"n"]
[134,null,null,null,null,null,null,null,null,null,"Supplies",null,null,"n"]
[135,null,null,null,null,null,null,null,null,null,"Supplies",null,null,"n"]
[136,null,null,null,null,null,null,null,null,null,"Supplies",null,null,"n"]
[137,null,null,null,null,null,null,null,null,null,"Supplies",null,null,"n"]
[138,null,null,null,null,null,null,null,null,null,"Supplies",null,null,"n"]
[139,null,null,null,null,null,null,null,null,null,"Supplies",null,null,"n"]
[140,null,null,null,null,null,null,null,null,null,"Supplies",null,null,"n"]
[141,null,null,null,null,null,null,null,null,null,"Supplies",null,null,"n"]
[142,null,null,null,null,null,null,null,null,null,"Supplies",null,null,"n"]
[143,null,null,null,null,null,null,null,null,null,"Supplies",null,null,"n"]
[144,null,null,null,null,null,null,null,null,null,"Supplies",null,null,"n"]
[145,null,null,null,null,null,null,null,null,null,"Supplies",null,null,"n"]
[146,null,null,null,null,null,null,null,null,null,"Supplies",null,null,"n"]
[147,null,null,null,null,null,null,null,null,null,"Supplies",null,null,"n"]
[148,null,null,null,null,null,null,null,null,null,"Supplies",null,null,"n"]
[149,null,null,null,null,null,null,null,null,null,"Supplies",null,null,"n"]
[150,null,null,null,null,null,null,null,null,null,"Supplies",null,null,"n"]
["PROGRAM EXPENSES",null,null,null,null,null,null,null,null,null,null,null,null,"y"]
[null,null,null,null,null,null,null,null,null,{"$f":"SUM(J70:J221)","v":0},null,null,null,"y"]
[null,null,null,null,null,null,null,null,null,null,null,null,null,"y"]
["C",null,"Travel - List name of traveler\n    Mileage:  list name of traveler, number of miles, and mileage rate\n    Other:  list name of traveler, conference or meeting name (e.g., Choices Conference), and type(s) of expenses (e.g., meals)",null,null,null,null,"Mileage $ Amount","Other","Total",null,null,null,"y"]
[1,null,null,null,null,null,null,null,null,{"$f":"ROUND(H225+I225,2)","v":0},"Travel",null,null,"y"]
[{"$f":"A225+1","v":2},null,null,null,null,null,null,null,null,{"$f":"ROUND(H226+I226,2)","v":0},"Travel",null,null,"y"]
[3,null,null,null,null,null,null,null,null,0,"Travel",null,null,{"$f":"IF(C226<>\"\",\"y\",IF(C227<>\"\",\"y\",IF(J227<>0,\"y\",\"n\")))","v":"n"}]
[4,null,null,null,null,null,null,null,null,0,"Travel",null,null,"n"]
[5,null,null,null,null,null,null,null,null,0,"Travel",null,null,"n"]
[6,null,null,null,null,null,null,null,null,0,"Travel",null,null,"n"]
[7,null,null,null,null,null,null,null,null,0,"Travel",null,null,"n"]
[8,null,null,null,null,null,null,null,null,0,"Travel",null,null,"n"]
[9,null,null,null,null,null,null,null,null,0,"Travel",null,null,"n"]
[10,null,null,null,null,null,null,null,null,0,"Travel",null,null,"n"]
[11,null,null,null,null,null,null,null,null,0,"Travel",null,null,"n"]
[12,null,null,null,null,null,null,null,null,0,"Travel",null,null,"n"]
[13,null,null,null,null,null,null,null,null,{"$f":"ROUND(H237+I237,2)","v":0},"Travel",null,null,"n"]
[14,null,null,null,null,null,null,null,null,0,"Travel",null,null,"n"]
[15,null,null,null,null,null,null,null,null,0,"Travel",null,null,"n"]
[16,null,null,null,null,null,null,null,null,0,"Travel",null,null,"n"]
[17,null,null,null,null,null,null,null,null,0,"Travel",null,null,"n"]
[18,null,null,null,null,null,null,null,null,0,"Travel",null,null,"n"]
[19,null,null,null,null,null,null,null,null,0,"Travel",null,null,"n"]
[20,null,null,null,null,null,null,null,null,0,"Travel",null,null,"n"]
[21,null,null,null,null,null,null,null,null,0,"Travel",null,null,"n"]
[22,null,null,null,null,null,null,null,null,0,"Travel",null,null,"n"]
[23,null,null,null,null,null,null,null,null,0,"Travel",null,null,"n"]
[24,null,null,null,null,null,null,null,null,0,"Travel",null,null,"n"]
[25,null,null,null,null,null,null,null,null,0,"Travel",null,null,"n"]
[26,null,null,null,null,null,null,null,null,0,"Travel",null,null,"n"]
[27,null,null,null,null,null,null,null,null,0,"Travel",null,null,"n"]
[28,null,null,null,null,null,null,null,null,0,"Travel",null,null,"n"]
[29,null,null,null,null,null,null,null,null,{"$f":"ROUND(H253+I253,2)","v":0},"Travel",null,null,"n"]
[30,null,null,null,null,null,null,null,null,0,"Travel",null,null,"n"]
["TRAVEL",null,null,null,null,null,null,null,null,null,null,null,null,"y"]
[null,null,null,null,null,null,null,null,null,{"$f":"SUM(J224:J255)","v":0},null,null,null,"y"]
[null,null,null,null,null,null,null,null,null,null,null,null,null,"y"]
["D",null,"Space / Miscellaneous / Administrative",null,null,null,null,null,null,"Total",null,null,null,"y"]
[null,null,"Space\nDescription of space allocation.  Space must be tied to documented time and effort.",null,null,null,null,null,null,null,null,null,null,"y"]
[1,null,null,null,null,null,null,null,null,null,"Space/Misc/Admin",null,null,"y"]
[{"$f":"A260+1","v":2},null,null,null,null,null,null,null,null,null,"Space/Misc/Admin",null,null,{"$f":"IF(C260<>\"\",\"y\",IF(C261<>\"\",\"y\",IF(J261<>0,\"y\",\"n\")))","v":"n"}]
[3,null,null,null,null,null,null,null,null,null,"Space/Misc/Admin",null,null,"n"]
[4,null,null,null,null,null,null,null,null,null,"Space/Misc/Admin",null,null,"n"]
[5,null,null,null,null,null,null,null,null,null,"Space/Misc/Admin",null,null,"n"]
[6,null,null,null,null,null,null,null,null,null,"Space/Misc/Admin",null,null,"n"]
[7,null,null,null,null,null,null,null,null,null,"Space/Misc/Admin",null,null,"n"]
[8,null,null,null,null,null,null,null,null,null,"Space/Misc/Admin",null,null,"n"]
[9,null,null,null,null,null,null,null,null,null,"Space/Misc/Admin",null,null,"n"]
[10,null,null,null,null,null,null,null,null,null,"Space/Misc/Admin",null,null,"n"]
[null,null,"Miscellaneous / Administrative\nList name of vendor with a brief description of items",null,null,null,null,null,"Receipt Date","Total",null,null,null,"y"]
[1,null,null,null,null,null,null,null,null,null,"Space/Misc/Admin",null,null,"y"]
[{"$f":"A271+1","v":2},null,null,null,null,null,null,null,null,null,"Space/Misc/Admin",null,null,{"$f":"IF(C271<>\"\",\"y\",IF(C272<>\"\",\"y\",IF(J272<>0,\"y\",\"n\")))","v":"n"}]
[3,null,null,null,null,null,null,null,null,null,"Space/Misc/Admin",null,null,"n"]
[4,null,null,null,null,null,null,null,null,null,"Space/Misc/Admin",null,null,"n"]
[5,null,null,null,null,null,null,null,null,null,"Space/Misc/Admin",null,null,"n"]
[6,null,null,null,null,null,null,null,null,null,"Space/Misc/Admin",null,null,"n"]
[7,null,null,null,null,null,null,null,null,null,"Space/Misc/Admin",null,null,"n"]
[8,null,null,null,null,null,null,null,null,null,"Space/Misc/Admin",null,null,"n"]
[9,null,null,null,null,null,null,null,null,null,"Space/Misc/Admin",null,null,"n"]
[10,null,null,null,null,null,null,null,null,null,"Space/Misc/Admin",null,null,"n"]
[11,null,null,null,null,null,null,null,null,null,"Space/Misc/Admin",null,null,"n"]
[12,null,null,null,null,null,null,null,null,null,"Space/Misc/Admin",null,null,"n"]
[13,null,null,null,null,null,null,null,null,null,"Space/Misc/Admin",null,null,"n"]
[14,null,null,null,null,null,null,null,null,null,"Space/Misc/Admin",null,null,"n"]
[15,null,null,null,null,null,null,null,null,null,"Space/Misc/Admin",null,null,"n"]
["SPACE / MISCELLANEOUS / ADMINISTRATIVE",null,null,null,null,null,null,null,null,null,null,null,null,"y"]
[null,null,null,null,null,null,null,null,null,{"$f":"SUM(J258:J286)","v":0},null,null,null,"y"]
[null,null,null,null,null,null,null,null,null,null,null,null,null,"y"]
[null,null,null,null,null,"SUBTOTAL",null,null,{"$f":"SUM(J68,J222,J256,J287)","v":0},null,null,null,null,"y"]
[null,null,null,null,null,null,null,null,null,null,null,null,null,"y"]
["E",null,"INDIRECT COSTS - ONLY TO SUBRECIPIENTS WITH PRIOR WRITTEN APPROVAL IN THEIR SUBCONTRACT",null,null,null,null,null,null,null,null,null,null,"y"]
[null,null,"A.  Indirect Cost Rate",null,null,null,null,"Percentage",null,{"$f":"ROUND(I289*I292,2)","v":0},null,null,null,"y"]
[null,null,"B.  Indirect Cost Amount (if not applied to MTDC)   Describe basis\n       (e.g. % of salary and fringe) and enter $ amount in column J.",null,null,null,null,null,null,0,null,null,null,"y"]
[null,null,null,null,null,null,null,null,null,null,null,null,null,"y"]
[null,null,null,null,"INVOICE AMOUNT",null,null,null,{"$f":"I289+J292+J293","v":0},null,null,null,null,"y"]
[null,null,null,null,null,null,null,null,null,null,null,null,null,"y"]
["F",null,"Authorized Signature and Date",null,null,null,null,null,null,null,null,null,null,"y"]
[null,null,"Printed name of signer",null,null,null,null,null,null,null,null,null,null,"y"]
[null,null,{"$f":"\"By my signature, I certify that all payments disbursed by our office are for the purposes outlined in my agency's \"&J1&\" agreement.\"","v":"By my signature, I certify that all payments disbursed by our office are for the purposes outlined in my agency's SNAP-ED FY2019 agreement."},null,null,null,null,null,null,null,null,null,null,"y"]
[null,null,null,null,null,null,null,null,null,null,null,null,null,"y"]
["For MFF use only:",null,null,null,null,null,null,null,null,null,null,null,null,"y"]
[null,null,null,null,null,null,null,null,null,null,null,null,null,"y"]
["74000-400-410  -   FY ________   -  CONTRACTED SERVICES   -   PARTNERS - ________________________",null,null,null,null,null,null,null,null,null,null,null,null,"y"]
[null,null,null,null,null,null,null,null,null,null,null,null,null,"y"]